Cogmind - Beta 16 @@@ ROGUE MODE // 2025.10.21 @ 22:30:44 Player: UberDoot Result: Destroyed by Y-45 Defender with Heavy Assault Rifle Performance ------------- Evolutions (0) 0 Regions Visited (3) 600 Robots Destroyed (48) 240 Value Destroyed (1073) 1073 Prototype IDs (0) 0 Alien Tech Used (0) 0 Bonus (0) 0 TOTAL SCORE: 1913 Bonus ------- None Cogmind --------- Core Integrity 0/250 Matter 18/300 Energy 197/200 System Corruption 0% Temperature Hot (268) Movement Treading (240) Ox1 Location -8/Recycling Parts ------- > --- POWER (1) -------- Subdweller Power Source > --- PROPULSION (2) --- Light Treads > --- UTILITY (2) ------ Medium Storage Unit Light Armor Plating > --- WEAPON (2) ------- Beam Cannon Battle Rifle > --- INVENTORY (10) --- Spiked Treads Subdweller Monowheel Seismic Detector Subdweller Laser Subdweller Laser Powered Cannon Subdweller Machine Gun Slug Cannon Grenade Launcher Peak State ------------ > --- POWER ------------ Subdweller Power Source > --- PROPULSION ------- Light Treads Light Treads > --- UTILITY ---------- Medium Storage Unit Seismic Detector > --- WEAPON ----------- Subdweller Laser Battle Rifle > --- INVENTORY -------- Spiked Treads Subdweller Monowheel Light Armor Plating Subdweller Laser Beam Cannon Powered Cannon Slug Cannon Grenade Launcher Grenade Launcher [Rating: 12] Favorites ----------- Power Ion Engine Engine Ion Engine Propulsion Light Treads Treads Light Treads Leg Aluminum Leg Utility Medium Storage Unit Device Seismic Detector Storage Medium Storage Unit Protection Light Armor Plating Weapon Assault Rifle Energy Gun Subdweller Laser Energy Cannon Beam Cannon Ballistic Gun Assault Rifle Ballistic Cannon Light Cannon Launcher Grenade Launcher Build | -11 -10 -10 -8 ------- Run | Yrd Mat Sub Rec Slots Evolved . | . . . . Power . | . . . . Propulsion . | . . . . Utility . | . . . . Weapon . | . . . . Parts Attached 29 | 8 11 10 . Power 5 | 2 1 2 . Engine 5 | 2 1 2 . Core . | . . . . Reactor . | . . . . Propulsion 8 | 2 4 2 . Treads 4 | . 2 2 . Leg 4 | 2 2 . . Wheel . | . . . . Hover . | . . . . Flight . | . . . . Utility 7 | 2 4 1 . Device 4 | 1 3 . . Storage 2 | 1 1 . . Processor . | . . . . Hackware . | . . . . Protection 1 | . . 1 . Artifact . | . . . . Weapon 9 | 2 2 5 . Energy Gun 1 | . . 1 . Energy Cannon 1 | . 1 . . Ballistic Gun 3 | 2 . 1 . Ballistic Cannon 2 | . 1 1 . Launcher 2 | . . 2 . Special Weapon . | . . . . Impact Weapon . | . . . . Slashing Weapon . | . . . . Piercing Weapon . | . . . . Special Melee Weapon . | . . . . Unidentified Prototypes . | . . . . Parts Lost 3 | . 1 1 1 Power 2 | . 1 1 . Propulsion 1 | . . . 1 Utility . | . . . . Weapon . | . . . . Highest Loss Streak 1 | . 1 1 1 To Critical Strikes . | . . . . Average Backups 9 | 5 9 9 9 Power . | . . . . Propulsion 2 | 2 2 2 2 Utility 2 | 1 2 2 1 Weapon 4 | 1 3 5 6 Tool/Special . | . . . . Unused Backups 14 | 2 3 4 5 Power 1 | . . 1 . Propulsion 4 | 2 . . 2 Utility 1 | . . 1 . Weapon 8 | . 3 2 3 Tool/Special . | . . . . Average Slot Usage (%) 99 | . 100 98 96 Engine 13 | . 14 12 14 Treads 22 | . 14 28 24 Leg 4 | . 13 . . Device 10 | . 14 8 . Storage 14 | . 14 14 14 Protection 3 | . . 5 14 Energy Gun 3 | . . 5 . Energy Cannon 6 | . 3 8 14 Ballistic Gun 9 | . 18 4 14 Ballistic Cannon 7 | . 5 9 . Peak Build Rating 12 | 8 10 12 12 Average Rating 8 | 6 8 9 11 On Entrance 7 | . 8 8 12 Avg Prop Armor Cover (%) 7 | . 7 . . Naked Turns . | . . . . Heaviest Build 26 | 15 22 26 23 Greatest Support 40 | 20 40 40 40 Greatest Overweight (x) 1 | . . . 1 Average Overweight (x) . | . . . . Largest Inventory Capacity 10 | 8 10 10 10 Average Capacity 9 | 7 9 10 10 Most Carried 10 | 8 10 10 10 Average Carried 9 | 5 9 9 10 Final Capacity 10 | 8 10 10 10 Final Carried 10 | 8 10 10 10 Class Distribution -------------------- 54% | Scavenger-Mutant 45% | Mutant Dominant Class ---------------- Scavenger-Mutant | -10/Materials Scavenger-Mutant | -10/Subcaves Mutant | -8/Recycling Resources | -11 -10 -10 -8 ----------- Run | Yrd Mat Sub Rec Matter Collected 1167 | 388 436 343 . Remotely . | . . . . Salvage Created 1360 | 202 849 309 . Parts 80 | 18 47 15 . Haulers Intercepted 2 | . 2 . . Recyclers Shooed 1 | 1 . . . Parts Field Recycled . | . . . . Retrieved Matter . | . . . . Parts Self-Destructed 14 | . . 14 . Prevented . | . . . . Parts Restored . | . . . . Kills | -11 -10 -10 -8 ------- Run | Yrd Mat Sub Rec Combat Hostiles Destroyed 31 | . 17 14 . Guns 17 | . 10 7 . Cannons 11 | . 7 4 . AOE 3 | . . 3 . Classes Destroyed 11 | 3 4 4 . Worker 2 | 1 1 . . Tunneler 6 | 6 . . . Hauler 2 | . 2 . . Recycler 3 | 1 2 . . Turret 2 | . . 2 . Watcher 2 | . 2 . . Swarmer 10 | . 6 4 . Grunt 11 | . 11 . . Sentry 1 | . . 1 . Artisan 1 | . . 1 . Subdweller 9 | . . 9 . Best Kill Streak 6 | 3 6 4 . Combat Bots Only 5 | . 5 4 . Max Kills in Single Turn 2 | 1 2 1 . Gunslinging . | . . . . Exploded 1 | . . 1 . Melee . | . . . . Uniques/NPCs Destroyed . | . . . . Combat | -11 -10 -10 -8 -------- Run | Yrd Mat Sub Rec Hostile Shots Fired 185 | . 74 97 14 Missed 58 | . 19 35 4 Hits 127 | . 55 62 10 Projectile 127 | . 55 62 10 Critical Strikes 1 | . 1 . . Damage Taken 1528 | . 527 858 143 Core 264 | . 64 128 72 Absorbed by Shields . | . . . . Core Remaining (%) 100 | 100 . . . Volleys Fired 158 | 18 53 79 8 Largest 2 | 2 2 2 2 Hottest 90 | 40 90 90 85 Shots Fired 274 | 36 106 116 16 Gun 180 | 36 83 53 8 Cannon 72 | . 23 41 8 Launcher 22 | . . 22 . Special . | . . . . Kinetic 180 | 36 96 40 8 Thermal 72 | . 10 54 8 Explosive 22 | . . 22 . Electromagnetic . | . . . . Robot Hit Streak 14 | 11 5 14 13 Robot Miss Streak 8 | 3 8 3 3 Penetration Max . | . . . . Secondary Targets 1 | . . 1 . Max Gunslinging Chain 1 | . . 1 . Shots Hit Robots 142 | 24 57 48 13 Core Hits 79 | 9 33 36 1 Critical Kills . | . . . . Critical Parts Destroyed 1 | . . 1 . Critical Strikes 3 | . 1 2 . Destroy 2 | . . 2 . Blast 1 | . 1 . . Melee Attacks . | . . . . Impact . | . . . . Slashing . | . . . . Piercing . | . . . . Sneak Attacks . | . . . . Combat Hostiles . | . . . . Follow-up Attacks . | . . . . Damage Inflicted 2809 | 284 818 1491 216 Guns 1348 | 284 561 390 113 Cannons 796 | . 257 436 103 Explosions 665 | . . 665 . Melee . | . . . . Ramming . | . . . . Kinetic 1516 | 284 731 388 113 Thermal 628 | . 87 438 103 Explosive 665 | . . 665 . Electromagnetic . | . . . . Impact . | . . . . Slashing . | . . . . Piercing . | . . . . Highest Corruption . | . . . . Average Corruption . | . . . . Corruption Purged . | . . . . Corruption Blocked . | . . . . Overload Shots . | . . . . Overflow Damage . | . . . . Projectiles . | . . . . Explosions . | . . . . Melee . | . . . . Knockbacks 8 | . 6 2 . Impact . | . . . . Kinetic 6 | . 4 2 . Secondary 2 | . 2 . . Self-Inflicted Damage 17 | . . 17 . Shots 1 | . . 1 . Rammed . | . . . . Targets Rammed . | . . . . Kicked . | . . . . Crushed . | . . . . Highest Temperature 259 | . 42 26 259 Average Temperature 56 | . 19 6 166 Received Heat Transfer 486 | . 177 264 45 Siege Activations . | . . . . Martial Activations . | . . . . Shielding Activations . | . . . . Robots Disrupted . | . . . . Combat Hostiles . | . . . . Robots Corrupted . | . . . . Combat Hostiles . | . . . . Parts Fried . | . . . . Impact Corruptions . | . . . . Robots Melted . | . . . . Combat Hostiles . | . . . . Parts Melted . | . . . . Heat Transferred 1090 | . 185 683 222 Parts Sabotaged . | . . . . Parts Stolen . | . . . . Parts Stripped . | . . . . Power Chain Reactions . | . . . . Alert | -11 -10 -10 -8 ------- Run | Yrd Mat Sub Rec Maximum Alert Level 1 | . 1 . . Low Security (%) 82 | 100 75 . 100 Level 1 17 | . 24 . . Level 2 . | . . . . Level 3 . | . . . . Level 4 . | . . . . Level 5 . | . . . . High Security . | . . . . Max Security . | . . . . Peak Influence 364 | 10 364 . 175 Initial 175 | . . . 175 Average 122 | 1 155 . 156 Influence Increases 1101 | 40 621 440 . Destroy 0b10 Robot/C 480 | . 340 140 . Destroy 0b10 Robot/NC 75 | 40 35 . . Destroy Leader 78 | . 78 . . Select Force Hacks 30 | . 30 . . Disable Machine 15 | . 15 . . Destroy Structure 3 | . 3 . . Lose Combat Pursuer 420 | . 120 300 . Influence Decreases 976 | 40 309 386 241 Entered New Map 342 | . . 151 191 Time Decay 614 | 40 299 235 40 Lost Part 20 | . 10 . 10 Squads Dispatched 4 | . 4 . . Investigation 2 | . 2 . . Extermination . | . . . . Reinforcement 2 | . 2 . . Assault . | . . . . Garrison . | . . . . Intercept . | . . . . Searches Triggered . | . . . . Construction Impeded . | . . . . Haulers Reinforced . | . . . . Active Scanning Responses . | . . . . Cargo Convoy Interrupts . | . . . . Stealth | -11 -10 -10 -8 --------- Run | Yrd Mat Sub Rec Distress Signals 1 | . 1 . . Communications Jammed . | . . . . Distress Signals . | . . . . Times Spotted 54 | . 32 20 2 Peak Tracking Total 5 | . 5 3 2 Tactical Retreats 8 | . 3 5 . Traps | -11 -10 -10 -8 ------- Run | Yrd Mat Sub Rec Traps Triggered . | . . . . Indirectly . | . . . . Trap Hack Attempts . | . . . . Triggered . | . . . . Disarmed . | . . . . Reprogrammed . | . . . . Reused . | . . . . Traps Extracted . | . . . . Installed . | . . . . Triggered . | . . . . Machines | -11 -10 -10 -8 ---------- Run | Yrd Mat Sub Rec Machines Disabled 5 | . 1 4 . Max in Single Turn 1 | . 1 1 . Machines Repaired . | . . . . Machines Dismantled . | . . . . Machines Sabotaged . | . . . . Overloaded Fab Kills . | . . . . Hacking | -11 -10 -10 -8 --------- Run | Yrd Mat Sub Rec Machines Accessed 4 | . 3 1 . Terminals 1 | . 1 . . Fabricators . | . . . . Repair Stations . | . . . . Recycling Units 2 | . 2 . . Scanalyzers . | . . . . Garrison Access . | . . . . Total Hacks 6 | . 3 3 . Successful 4 | . 1 3 . Failed 2 | . 2 . . Catastrophic 1 | . 1 . . Database Lockouts . | . . . . Manual 1 | . 1 . . Terminals 1 | . 1 . . Fabricators . | . . . . Repair Stations . | . . . . Recycling Units 2 | . 2 . . Scanalyzers . | . . . . Garrison Access . | . . . . Terminal Hacks 3 | . . 3 . Record 3 | . . 3 . Fabricator Hacks . | . . . . Repair Station Hacks . | . . . . Recycling Unit Hacks . | . . . . Scanalyzer . | . . . . Garrison Access Hacks . | . . . . Unauthorized Hacks 1 | . 1 . . Terminals . | . . . . Fabricators . | . . . . Repair Stations . | . . . . Recycling Units 1 | . 1 . . Tunnel 1 | . 1 . . Scanalyzers . | . . . . Garrison Access . | . . . . Data Cores Recovered . | . . . . Used . | . . . . Hacking Detections 2 | . 2 . . Full Trace Events . | . . . . Feedback Events . | . . . . Feedback Blocked . | . . . . Robot Schematics Acquired . | . . . . Robots Built . | . . . . Authchips . | . . . . Time . | . . . . Total Robot Build Rating . | . . . . Part Schematics Acquired . | . . . . Parts Built . | . . . . Authchips . | . . . . Time . | . . . . Total Part Build Rating . | . . . . Part Studies Acquired . | . . . . Parts Repaired . | . . . . Time . | . . . . Parts Recycled . | . . . . Recycled Matter . | . . . . Retrieved Matter . | . . . . Retrieved Components . | . . . . Parts Scanalyzed . | . . . . Part Schematics Acquired . | . . . . Parts Damaged . | . . . . Bothacking | -11 -10 -10 -8 ------------ Run | Yrd Mat Sub Rec Used RIF Installer . | . . . . Robots Hacked . | . . . . Non-combat . | . . . . Combat . | . . . . Robot Hacks Applied . | . . . . Relay Couplers Released . | . . . . Fabnet Peak Effective % . | . . . . Robots Rewired . | . . . . Allies Hacked . | . . . . Hacks Repelled . | . . . . Allies | -11 -10 -10 -8 -------- Run | Yrd Mat Sub Rec Total Allies . | . . . . Largest Group . | . . . . Highest-Rated Group . | . . . . Highest-Rated Ally . | . . . . Total Orders . | . . . . Ally Attacks . | . . . . Total Damage . | . . . . Kills . | . . . . Allies Corrupted . | . . . . Allies Melted . | . . . . Intel | -11 -10 -10 -8 ------- Run | Yrd Mat Sub Rec Active Infowar (turns) 1702 | 52 795 855 . Terrain 61 | . 61 . . Seismic 1641 | 52 734 855 . Robot Analysis Total . | . . . . Derelict Logs Recovered 2 | . . 2 . Drone Launches . | . . . . Drone Recoveries . | . . . . Exploration | -11 -10 -10 -8 ------------- Run | Yrd Mat Sub Rec Turns Passed 2534 | 251 834 1368 81 Spaces Moved 1262 | 144 413 672 33 Core 3 | 3 . . . Treads 946 | . 241 672 33 Legs 313 | 141 172 . . Wheels . | . . . . Hover . | . . . . Flight . | . . . . Fastest Speed 50 | 50 120 160 160 Average Speed 149 | 118 143 160 162 Slowest Speed 240 | 120 160 160 240 Overloaded Moves . | . . . . Propulsion Burnouts . | . . . . Robots Hopped . | . . . . Potential Cave-ins . | . . . . Cave-ins Triggered . | . . . . Exploration Rate (%) 25 | 7 58 28 8 Regions Visited 3 Branch Regions 2 Pre-discovered Areas 2 | . 1 1 . Known Exits Taken . | . . . . Unknown Exits Taken 3 | 1 1 1 . Scrap Searched 4 | . . 4 . Spaces Dug . | . . . . Terrain Destroyed 73 | . . 73 . Melee . | . . . . Projectile . | . . . . AOE 73 | . . 73 . Terrain Rammed . | . . . . Walls Destroyed . | . . . . Machines Disabled . | . . . . Actions | -11 -10 -10 -8 --------- Run | Yrd Mat Sub Rec Total 1631 | 187 552 846 46 Wait 105 | 4 50 46 5 Move 1259 | 143 412 671 33 Hop . | . . . . Pick Up 32 | 11 9 12 . Fast Attach 12 | 7 4 1 . Attach 3 | . 2 1 . Detach 1 | . 1 . . Swap 31 | 1 8 22 . Drop 30 | 3 13 14 . Fire 158 | 18 53 79 8 Melee . | . . . . Ram . | . . . . Kick . | . . . . Crush . | . . . . Escape Stasis . | . . . . Rewire . | . . . . Trap . | . . . . Miscellaneous . | . . . . Route ------- -11/Scrapyard -10/Materials (discovered 3 exits: [*Mat x2] / *Sub) -10/Subcaves -8/Recycling History --------- Turn | Location | Event 26 | -11/Scrapyard | Discovered new exit (range 15) 252 | -11/Scrapyard | Entered Materials 310 | -10/Materials | Build established: Mutant 852 | -10/Materials | Derelicts attacked the area 879 | -10/Materials | Build established: Scavenger-Mutant 892 | -10/Materials | Discovered new exit (range 11) 1061 | -10/Materials | Discovered new exit (range 16) 1070 | -10/Materials | Discovered new exit (range 6) 1086 | -10/Materials | Entered Subcaves 1087 | -10/Subcaves | Approached by a straggling Scientist 1157 | -10/Subcaves | Disturbed a concealed Subdweller 1388 | -10/Subcaves | A swath of the cavern ceiling suddenly collapsed 1405 | -10/Subcaves | Visited Clippyterm 1409 | -10/Subcaves | Learned Research security intel 1699 | -10/Subcaves | Shifting Twisted Machinery released Sub. Laser 1710 | -10/Subcaves | Shifting Twisted Machinery released Spk. Treads 1727 | -10/Subcaves | Learned Materials stockpile data 1996 | -10/Subcaves | Learned location of Storage (-8) 2007 | -10/Subcaves | A Subdweller sparked back to life 2007 | -10/Subcaves | A Subdweller sparked back to life 2007 | -10/Subcaves | A Subdweller sparked back to life 2009 | -10/Subcaves | Core integrity fell below 50% 2055 | -10/Subcaves | Found Prototype Energy Cannon 2096 | -10/Subcaves | Shifting Twisted Machinery released Barrage Gun 2099 | -10/Subcaves | A swath of the cavern ceiling suddenly collapsed 2227 | -10/Subcaves | Discovered new exit (range 11) 2265 | -10/Subcaves | Build established: Mutant 2454 | -10/Subcaves | Entered Recycling 2455 | -8/Recycling | Met a Zionite searching for Scraptown 2520 | -8/Recycling | Core integrity fell below 20% 2535 | -8/Recycling | Destroyed by Y-45 Defender with Heavy Assault Rifle Last Messages --------------- 02393_ The unstable cave ceiling collapses. 02393_ Acquired Sub. Machine Gun. 02400_ The unstable cave ceiling collapses. XE-673(c): "I think it's somewhere southwest of here" 02415_ The unstable cave ceiling collapses. 02430_ Acquired 8 matter. LOCATION=UNKNOWN GOAL=ESCAPE 02455_ XM-I4J(z): "You there! You wouldn't happen to know where Scraptown is, do you?" 02456_ XM-I4J(z): "I've heard great things about that place, but almost no one seems to know where to find it, only that you access it somewhere from Recycling here." 02457_ XM-I4J(z): "Anyway I've been here searching too long already, time to slink back to the caves before I'm caught. You'd best do the same." 02516_ Lgt. Treads destroyed. Map ----- +----------------------------------------------------+ | ?????????????????????????????????????????????????? | | ?????????????????????????????????????????????????? | | ?????????????????????????????????????????????????? | | ?????????????????????????????????????????????????? | | ?????????????????????????????????????????????????? | | ?????????????????????????????????????????????????? | | ?????????????????????????????????????????????????? | | ?????????????????????????????????????????????????? | | ?????????????????????????????????????????????????? | | ?????????????????????????????????????????????????? | | ?????????????????????????????????????????????????? | | ?????????????????????????????????????????????????? | | ?????????????????????????????????????????????????? | | ?????????????????????????????????????????????????? | | ?????????????????????????????????????????????????? | | ?????????????????????????????????????????????????? | | ?????????????????????????????????????????????????? | | ?????????????????????????????????????????????????? | | ?????????????????????????????????????????????????? | | ?????????????????????????????????????????????????? | | ????????????????????#####????????????????????????? | | ????????????????????# ###########??????????????? | | ????????????????????# # #??????????????? | | ????????????????????# # """"""" #??????????????? | | ????????? ###### # # """"""" #??????????????? | | ??????? #@""""""" #??????????????? | | ??????? Y """"""" #??????????????? | | ??????? # """"""" #??????????????? | | ???????? % Y# #??????????????? | | ???????? # #??????????????? | | ????????? ##+########??????????????? | | ???????? ########### #?????????????????????? | | ????????????????????# #?????????????????????? | | ????????????????????# #?????????????????????? | | ????????????????????# #?????????????????????? | | ???????????????????# +?????????????????????? | | ???????????????????## #?????????????????????? | | ????????????????????# #?????????????????????? | | ????????????????????# +?????????????????????? | | ????????????????????# ??????????????????????? | | ????????????????????# ??????????????????????? | | ????????????????????### ??????????????????????? | | ??????????????????????# ??????????????????????? | | ??????????????????????#+##+??????????????????????? | | ?????????????????????????????????????????????????? | | ?????????????????????????????????????????????????? | | ?????????????????????????????????????????????????? | | ?????????????????????????????????????????????????? | | ?????????????????????????????????????????????????? | | ?????????????????????????????????????????????????? | +----------------------------------------------------+ Best States ------------- Heat Dissipation 35 Energy Generation 15 Energy Capacity 250 Matter Stores 300 Matter Capacity 300 Sight Range 16 Terrain Scan Range 16 Terrain Scan Density 10 Armor Coverage 150 Evasion (%) 55 Recoil Reduction 2 Item Schematics ----------------- None Robot Schematics ------------------ None Fabricated ------------ Nothing Repaired ---------- Nothing Studied --------- None Alien Tech Used ----------------- None Achievements -------------- Art Critic Bumper Bots DATA ERROR: Steam Global Achievement% Organ Harvest Challenges ------------ None Game ------ Seed RegenerativeBehemothMembrane Manual? 0 Play Time 00:17:12 Cumulative 232.6 hours Start 2025.10.21 @ 22:13:51 End 2025.10.21 @ 22:30:44 Sessions 1 Manual Loads 0 Difficulty Rogue Special Mode None Game No. 126 Rogue 126 Adventurer 0 Explorer 0 Win Type - Total 4 Types 3/0/1/0/0/0/0/0/0/0 Lore% 73 Gallery% 70 Achievement% 35 Wizard Run 0 Options --------- Layout 1 ASCII 0 Keyboard 1 Movement Numpad Keybinds 0 Fullscreen 2 Font 24/Terminus Map View 50x40 Zoom Use 0% Tactical HUD 1 Map Filters NONE Filters NONE Steam 1 RUN: fe6b293b-fe37-4812-a8ba-bd676e1eacaa